fUSD/lending_fUSD_20241111
["ID","MTS","AMOUNT","RATE_DAILY","PERIOD"]
[341933921,1731312642600,-500.0,0.00014796,2]
[341933922,1731312642609,-500.0,0.00014796,2]
[341933923,1731312642618,-500.0,0.00014796,2]
[341933924,1731312642628,-500.0,0.00014796,2]
[341933926,1731312642637,-500.0,0.00014796,2]
[341933928,1731312642647,-500.0,0.00014796,2]
[341933930,1731312642656,-500.0,0.00014796,2]
[341933931,1731312642666,-293.26,0.00014796,2]
[341933933,1731312642675,-500.0,0.00014796,2]
[341933934,1731312642687,-500.0,0.00014796,2]
[341933936,1731312642697,-500.0,0.00014796,2]
[341933939,1731312642707,-162.520225,0.00014796,2]
[341933941,1731312642716,-500.0,0.00014796,2]
[341933942,1731312642725,-367.935328,0.00014796,2]
[341933943,1731312642734,-162.520225,0.00014796,2]
[341933944,1731312642743,-500.0,0.00014796,2]
[341933945,1731312642753,-500.0,0.00014796,2]
[341933946,1731312642762,-500.0,0.00014796,2]
[341933947,1731312642771,-325.41,0.00014796,2]
[341933948,1731312642780,-500.0,0.00014796,2]
[341933949,1731312642789,-397.2466296,0.00014796,2]
[341933950,1731312642798,-367.935328,0.00014796,2]
[341933951,1731312642807,-503.18510061,0.00014796,2]
[341933952,1731312642817,-500.0,0.00014796,2]
[341933953,1731312642826,-288.90162777,0.00014796,2]
[341933955,1731312642836,-500.0,0.00014796,2]
[341933956,1731312642845,-500.0,0.00014796,2]
[341933957,1731312642855,-411.27,0.00014796,2]
[341933958,1731312642864,-500.0,0.00014796,2]
[341933960,1731312642875,-500.0,0.00014796,2]
[341933962,1731312642886,-500.0,0.00014796,2]
[341933963,1731312642895,-500.0,0.00014796,2]
[341933964,1731312642905,-506.01926235,0.00014796,2]
[341933965,1731312642914,-500.0,0.00014796,2]
[341933966,1731312642925,-500.0,0.00014796,2]
[341933967,1731312642936,-301.19,0.00014796,2]
[341933968,1731312642945,-500.0,0.00014796,2]
[341933969,1731312642956,-500.0,0.00014796,2]
[341933970,1731312642965,-500.0,0.00014796,2]
[341933971,1731312642975,-516.20266525,0.00014796,2]
[341933972,1731312642984,-500.0,0.00014796,2]
[341933973,1731312642993,-500.0,0.00014796,2]
[341933974,1731312643002,-156.16141094,0.00014796,2]
[341933975,1731312643011,-500.0,0.00014796,2]
[341933976,1731312643021,-500.0,0.00014796,2]
[341933977,1731312643030,-285.42360263,0.00014796,2]
[341933978,1731312643039,-500.0,0.00014796,2]
[341933979,1731312643049,-500.0,0.00014796,2]
[341933980,1731312643058,-500.0,0.00014796,2]
[341933981,1731312643068,-500.0,0.00014796,2]
[341933982,1731312643076,-205.51222496,0.00014796,2]
[341933983,1731312643085,-500.0,0.00014796,2]
[341933984,1731312643094,-500.0,0.00014796,2]
[341933985,1731312643103,-500.0,0.00014796,2]
[341933986,1731312643112,-500.0,0.00014796,2]
[341933987,1731312643121,-215.45,0.00014796,2]
[341933988,1731312643129,-500.0,0.00014796,2]
[341933989,1731312643138,-2101.853419,0.00014796,2]
[341933990,1731312643147,-508.6818974,0.00014796,2]
[341933991,1731312643156,-2101.853419,0.00014796,2]
[341933992,1731312643165,-500.0,0.00014796,2]
[341933993,1731312643174,-2101.853419,0.00014796,2]
[341933994,1731312643183,-2111.16,0.00014796,2]
[341933995,1731312643192,-500.0,0.00014796,2]
[341933996,1731312643201,-324.53,0.00014796,2]
[341933997,1731312643210,-2101.853419,0.00014796,2]
[341933998,1731312643219,-2101.853419,0.00014796,2]
[341933999,1731312643228,-2101.853419,0.00014796,2]
[341934000,1731312643237,-500.0,0.00014796,2]
[341934001,1731312643246,-318.49402572,0.00014796,2]
[341934002,1731312643255,-500.0,0.00014796,2]
[341934003,1731312643264,-339.57980843,0.00014796,2]
[341934004,1731312643273,-500.0,0.00014796,2]
[341934005,1731312643283,-500.0,0.00014797,2]
[341934006,1731312643292,-503.94077945,0.00014797,2]
[341934007,1731312643301,-509.1143512,0.00014797,2]
[341934008,1731312643310,-502.09295193,0.00014797,2]
[341934009,1731312643319,-503.69120976,0.00014797,2]
[341934010,1731312643328,-502.27764946,0.00014797,2]
[341934011,1731312643338,-503.13439951,0.00014797,2]
[341934013,1731312643347,-507.25345605,0.00014797,2]
[341934015,1731312643356,-502.80490223,0.00014797,2]
[341934017,1731312643365,-502.95624525,0.00014797,2]
[341934019,1731312643374,-504.17660724,0.00014797,2]
[341934021,1731312643383,-502.75715404,0.00014797,2]
[341934023,1731312643392,-512.83341981,0.00014797,2]
[341934025,1731312643401,-507.0606539,0.00014797,2]
[341934027,1731312643410,-615.22300617,0.00014797,2]
[341934029,1731312643419,-509.16844896,0.00014797,2]
[341934031,1731312643429,-500.0,0.00014797,2]
[341934033,1731312643439,-502.5272432,0.00014797,2]
[341934034,1731312643448,-511.08008889,0.00014797,2]
[341934036,1731312643458,-593.32,0.00014797,2]
[341934038,1731312643467,-500.0,0.00014797,2]
[341934040,1731312643476,-500.0,0.00014797,2]
[341934042,1731312643486,-531.17,0.00014797,2]
[341934044,1731312643495,-502.99694997,0.00014797,2]
[341934046,1731312643504,-500.0,0.00014797,2]
[341934048,1731312643513,-296.23215075,0.00014797,2]
[341934050,1731312643522,-391.5485585,0.00014797,2]
[341934052,1731312643531,-500.0,0.00014797,2]
[341934054,1731312643540,-502.35616862,0.00014797,2]
[341934056,1731312643550,-500.0,0.00014797,2]
[341934057,1731312643559,-1219.5,0.00014797,2]
[341934058,1731312643568,-500.50885816,0.00014797,2]
[341934059,1731312643577,-508.96201135,0.00014797,2]
[341934061,1731312643586,-822.98,0.00014797,2]
[341934063,1731312643595,-500.0,0.00014797,2]
[341934065,1731312643604,-620.56696218,0.00014797,2]
[341934066,1731312643613,-501.46138869,0.00014797,2]
[341934067,1731312643622,-500.0,0.00014797,2]
[341934068,1731312643631,-619.88,0.00014797,2]
[341934069,1731312643640,-500.0,0.00014797,2]
[341934070,1731312643649,-500.0,0.00014797,2]
[341934071,1731312643658,-942.91,0.00014797,2]
[341934072,1731312643667,-500.0,0.00014797,2]
[341934073,1731312643675,-156.6,0.00014797,2]
[341934074,1731312643686,-500.0,0.00014797,2]
[341934075,1731312643695,-500.0,0.00014797,2]
[341934076,1731312643704,-638.09365171,0.00014797,2]
[341934077,1731312643712,-500.0,0.00014797,2]
[341934078,1731312643722,-500.0,0.00014797,2]
[341934079,1731312643731,-428.85,0.00014797,2]
[341934080,1731312643739,-500.0,0.00014797,2]
[341934081,1731312643748,-504.80328975,0.00014797,2]
[341934082,1731312643757,-328.74,0.00014797,2]
[341934083,1731312643766,-500.0,0.00014797,2]
[341934084,1731312643775,-514.20246757,0.00014797,2]
[341934085,1731312643784,-500.0,0.00014797,2]
[341934086,1731312643793,-500.0,0.00014797,2]
[341934087,1731312643802,-500.0,0.00014797,2]
[341934088,1731312643811,-633.78152714,0.00014797,2]
[341934089,1731312643821,-502.36380993,0.00014797,2]
[341934090,1731312643830,-502.16774643,0.00014797,2]
[341934091,1731312643838,-500.0,0.00014797,2]
[341934092,1731312643847,-499.136167,0.00014797,2]
[341934093,1731312643856,-499.136167,0.00014797,2]
[341934094,1731312643865,-499.136167,0.00014797,2]
[341934095,1731312643876,-499.136167,0.00014797,2]
[341934096,1731312643887,-298.91138,0.00014797,2]
[341934097,1731312643896,-557.394256,0.00014797,2]
[341934098,1731312643905,-557.394256,0.00014797,2]
[341934099,1731312643914,-557.394256,0.00014797,2]
[341934100,1731312643923,-557.394256,0.00014797,2]
[341934101,1731312643932,-151.0,0.00014797,2]
[341934102,1731312643944,-500.0,0.00014797,2]
[341934103,1731312643957,-151.0,0.00014797,2]
[341934104,1731312643966,-151.0,0.00014797,2]
[341934105,1731312643975,-151.0,0.00014797,2]
[341934106,1731312643985,-151.0,0.00014797,2]
[341934107,1731312643994,-500.0,0.00014797,2]
[341934108,1731312644004,-500.0,0.00014797,2]
[341934109,1731312644014,-500.0,0.00014797,2]
[341934110,1731312644023,-500.0,0.00014797,2]
[341934111,1731312644032,-500.0,0.00014797,2]
[341934112,1731312644042,-534.62,0.00014797,2]
[341934113,1731312644051,-461.52757221,0.00014797,2]
[341934114,1731312644060,-342.94164279,0.00014797,2]
[341934115,1731312644069,-836.169632,0.00014797,2]
[341934116,1731312644078,-836.169632,0.00014797,2]
[341934117,1731312644087,-500.0,0.00014797,2]
[341934118,1731312644096,-3641.8,0.00014797,2]
[341934119,1731312644105,-275.880574,0.00014797,2]
[341934120,1731312644114,-275.880574,0.00014797,2]
[341934121,1731312644123,-275.880574,0.00014797,2]
[341934122,1731312644131,-275.880574,0.00014797,2]
[341934123,1731312644140,-1109.98,0.00014797,2]
[341934124,1731312644149,-264.768914,0.00014797,2]
[341934125,1731312644159,-1187.45,0.00014797,2]
[341934126,1731312644168,-2605.834856,0.00014797,2]
[341934127,1731312644176,-262.312586,0.00014797,2]
[341934128,1731312644189,-2571.47,0.00014797,2]
[341934129,1731312644198,-262.312586,0.00014797,2]
[341934130,1731312644207,-2605.834856,0.00014797,2]
[341934131,1731312644216,-300.242434,0.00014797,2]
[341934132,1731312644226,-500.0,0.00014797,2]
[341934133,1731312644235,-2605.834856,0.00014797,2]
[341934134,1731312644244,-300.242434,0.00014797,2]
[341934135,1731312644253,-262.312586,0.00014797,2]
[341934136,1731312644262,-2605.834856,0.00014797,2]
[341934137,1731312644271,-262.312586,0.00014797,2]
[341934138,1731312644280,-300.242434,0.00014797,2]
[341934139,1731312644289,-300.242434,0.00014797,2]
[341934140,1731312644298,-151.0,0.00014797,2]
[341934141,1731312644307,-151.0,0.00014797,2]
[341934142,1731312644317,-578.31,0.00014797,2]
[341934143,1731312644326,-154.922829,0.00014797,2]
[341934144,1731312644336,-151.0,0.00014797,2]
[341934145,1731312644345,-253.854031,0.00014797,2]
[341934146,1731312644354,-500.0,0.00014797,2]
[341934147,1731312644362,-500.0,0.00014797,2]
[341934148,1731312644371,-500.0,0.00014797,2]
[341934149,1731312644380,-592.15,0.00014797,2]
[341934150,1731312644389,-676.91,0.00014797,2]
[341934151,1731312644399,-500.0,0.00014797,2]
[341934152,1731312644408,-500.0,0.00014797,2]
[341934153,1731312644417,-500.0,0.00014797,2]
[341934154,1731312644427,-544.34,0.00014797,2]
[341934155,1731312644438,-535.58,0.00014797,2]
[341934156,1731312644447,-500.0,0.00014797,2]
[341934157,1731312644456,-500.0,0.00014797,2]
[341934158,1731312644466,-151.0,0.00014797,2]
[341934159,1731312644475,-151.0,0.00014797,2]
[341934160,1731312644484,-151.0,0.00014797,2]
[341934161,1731312644493,-500.0,0.00014797,2]
[341934162,1731312644502,-151.0,0.00014797,2]
[341934163,1731312644511,-151.0,0.00014797,2]
[341934164,1731312644521,-160.4,0.00014797,2]
[341934165,1731312644530,-500.0,0.00014797,2]
[341934166,1731312644539,-500.0,0.00014797,2]
[341934167,1731312644548,-500.0,0.00014797,2]
[341934168,1731312644557,-500.0,0.00014797,2]
[341934169,1731312644566,-500.0,0.00014797,2]
[341934170,1731312644575,-500.0,0.00014797,2]
[341934171,1731312644584,-162.520225,0.00014797,2]
[341934172,1731312644593,-162.520225,0.00014797,2]
[341934173,1731312644603,-500.0,0.00014797,2]
[341934174,1731312644612,-367.935328,0.00014797,2]
[341934175,1731312644621,-162.520225,0.00014797,2]
[341934176,1731312644630,-367.935328,0.00014797,2]
[341934177,1731312644640,-162.520225,0.00014797,2]
[341934178,1731312644649,-367.935328,0.00014797,2]
[341934179,1731312644658,-367.935328,0.00014797,2]
[341934180,1731312644667,-500.0,0.00014797,2]
[341934181,1731312644676,-269.01756273,0.00014797,2]
[341934182,1731312644687,-500.0,0.00014797,2]
[341934183,1731312644696,-500.0,0.00014797,2]
[341934184,1731312644705,-500.0,0.00014797,2]
[341934185,1731312644715,-2101.853419,0.00014797,2]
[341934186,1731312644724,-2111.16,0.00014797,2]
[341934187,1731312644733,-2101.853419,0.00014797,2]
[341934188,1731312644743,-500.0,0.00014798,2]
[341934189,1731312644752,-500.0,0.00014798,2]
[341934190,1731312644761,-1813.76110294,0.00014798,2]
[341934191,1731312644771,-200.0,0.00014798,2]
[341934192,1731312644781,-500.0,0.00014798,2]
[341934193,1731312644791,-561.32840237,0.00014798,2]
[341934194,1731312644800,-151.0,0.00014798,2]
[341934195,1731312644810,-346.85,0.00014798,2]
[341934196,1731312644819,-151.0,0.00014798,2]
[341934197,1731312644828,-151.0,0.00014798,2]
[341934198,1731312644837,-159.205493,0.00014798,2]
[341934199,1731312644846,-159.205493,0.00014798,2]
[341934200,1731312644856,-192.99059941,0.00014798,2]
[341934201,1731312644865,-151.0,0.00014798,2]
[341934202,1731312644877,-151.0,0.00014798,2]
[341934203,1731312644887,-151.861951,0.00014798,2]
[341934204,1731312644896,-151.0,0.00014798,2]
[341934205,1731312644906,-151.0,0.00014798,2]
[341934206,1731312644915,-151.0,0.00014798,2]
[341934207,1731312644925,-275.834087,0.00014798,2]
[341934208,1731312644935,-156.361212,0.00014798,2]
[341934209,1731312644944,-200.0,0.00014798,2]
[341934210,1731312644956,-152.649394,0.00014798,2]
[341934211,1731312644966,-151.0,0.00014798,2]
[341934212,1731312644975,-172.875174,0.00014798,2]
[341934213,1731312644984,-500.0,0.00014798,2]
[341934214,1731312644994,-226.8,0.00014798,2]
[341934215,1731312645003,-1219.5,0.00014798,2]
[341934216,1731312645012,-1219.5,0.00014798,2]
[341934217,1731312645022,-241.598804,0.00014798,2]
[341934218,1731312645031,-241.598804,0.00014798,2]
[341934219,1731312645042,-151.0,0.00014798,2]
[341934220,1731312645051,-241.598804,0.00014798,2]
[341934221,1731312645061,-241.598804,0.00014798,2]
[341934222,1731312645070,-822.98,0.00014798,2]
[341934223,1731312645079,-822.98,0.00014798,2]
[341934224,1731312645242,-151.0,0.00014798,2]
[341934225,1731312645252,-151.0,0.00014798,2]
[341934226,1731312645261,-151.0,0.00014798,2]
[341934227,1731312645271,-151.0,0.00014798,2]
[341934228,1731312645282,-151.0,0.00014798,2]
[341934229,1731312645292,-151.0,0.00014798,2]
[341934230,1731312645302,-151.0,0.00014798,2]
[341934231,1731312645312,-500.0,0.00014798,2]
[341934232,1731312645323,-500.0,0.00014798,2]
[341934233,1731312645333,-500.0,0.00014798,2]
[341934234,1731312645344,-394.22015572,0.00014798,2]
[341934235,1731312645355,-151.0,0.00014798,2]
[341934236,1731312645365,-151.0,0.00014798,2]
[341934237,1731312645376,-619.88,0.00014798,2]
[341934238,1731312645386,-619.88,0.00014798,2]
[341934239,1731312645396,-619.88,0.00014798,2]
[341934240,1731312645405,-619.88,0.00014798,2]
[341934241,1731312645414,-500.0,0.00014798,2]
[341934242,1731312645424,-500.0,0.00014798,2]
[341934243,1731312645434,-500.0,0.00014798,2]
[341934244,1731312645443,-500.0,0.00014798,2]
[341934245,1731312645453,-151.0,0.00014798,2]
[341934246,1731312645463,-151.0,0.00014798,2]
[341934247,1731312645473,-942.91,0.00014798,2]
[341934248,1731312645484,-942.91,0.00014798,2]
[341934249,1731312645495,-151.0,0.00014798,2]
[341934250,1731312645505,-151.0,0.00014798,2]
[341934251,1731312645515,-151.0,0.00014798,2]
[341934252,1731312645525,-151.0,0.00014798,2]
[341934253,1731312645535,-500.0,0.00014798,2]
[341934254,1731312645545,-500.0,0.00014798,2]
[341934255,1731312645555,-177.6,0.00014798,2]
[341934256,1731312645565,-500.0,0.00014798,2]
[341934257,1731312645574,-500.0,0.00014798,2]
[341934258,1731312645584,-500.0,0.00014798,2]
[341934259,1731312645594,-500.0,0.00014798,2]
[341934260,1731312645603,-500.0,0.00014798,2]
[341934261,1731312645613,-500.0,0.00014798,2]
[341934262,1731312645623,-500.0,0.00014798,2]
[341934263,1731312645634,-500.0,0.00014798,2]
[341934264,1731312645644,-542.59001222,0.00014798,2]
[341934265,1731312645654,-500.0,0.00014798,2]
[341934266,1731312645664,-500.0,0.00014798,2]
[341934267,1731312645673,-2000.0,0.00014798,2]
[341934268,1731312645685,-200.0,0.00014798,2]
[341934269,1731312645695,-500.0,0.00014798,2]
[341934270,1731312645704,-500.0,0.00014798,2]
[341934271,1731312645714,-499.136167,0.00014798,2]
[341934272,1731312645724,-499.136167,0.00014798,2]
[341934273,1731312645734,-499.136167,0.00014798,2]
[341934274,1731312645744,-499.136167,0.00014798,2]
[341934275,1731312645754,-557.394256,0.00014798,2]
[341934276,1731312645764,-557.394256,0.00014798,2]
[341934277,1731312645774,-557.394256,0.00014798,2]
[341934278,1731312645784,-557.394256,0.00014798,2]
[341934279,1731312645793,-151.0,0.00014798,2]
[341934280,1731312645802,-151.0,0.00014798,2]
[341934281,1731312645812,-151.0,0.00014798,2]
[341934282,1731312645821,-280.02616755,0.00014798,2]
[341934283,1731312645830,-151.0,0.00014798,2]
[341934284,1731312645840,-151.0,0.00014798,2]
[341934285,1731312645850,-151.0,0.00014798,2]
[341934286,1731312645860,-231.103104,0.00014798,2]
[341934287,1731312645870,-500.0,0.00014798,2]
[341934288,1731312645882,-487.26346473,0.00014798,2]
[341934289,1731312645892,-500.0,0.00014798,2]
[341934290,1731312645902,-500.0,0.00014798,2]
[341934291,1731312645912,-500.0,0.00014798,2]
[341934292,1731312645922,-500.0,0.00014798,2]
[341934293,1731312645932,-500.0,0.00014798,2]
[341934294,1731312645945,-500.0,0.00014798,2]
[341934295,1731312645955,-500.0,0.00014798,2]
[341934296,1731312645965,-534.62,0.00014798,2]
[341934297,1731312645975,-534.62,0.00014798,2]
[341934298,1731312645984,-500.0,0.00014798,2]
[341934299,1731312645994,-836.169632,0.00014798,2]
[341934300,1731312646003,-836.169632,0.00014798,2]
[341934301,1731312646011,-500.0,0.00014798,2]
[341934302,1731312646020,-500.0,0.00014798,2]
[341934303,1731312646029,-3641.8,0.00014798,2]
[341934304,1731312646039,-3641.8,0.00014798,2]
[341934305,1731312646049,-275.880574,0.00014798,2]
[341934306,1731312646058,-275.880574,0.00014798,2]
[341934307,1731312646068,-275.880574,0.00014798,2]
[341934308,1731312646078,-275.880574,0.00014798,2]
[341934309,1731312646087,-1109.98,0.00014798,2]
[341934310,1731312646097,-1109.98,0.00014798,2]
[341934311,1731312646106,-1187.45,0.00014798,2]
[341934312,1731312646115,-1187.45,0.00014798,2]
[341934313,1731312646124,-2571.47,0.00014798,2]
[341934314,1731312646135,-262.312586,0.00014798,2]
[341934315,1731312646145,-2571.47,0.00014798,2]
[341934316,1731312646155,-262.312586,0.00014798,2]
[341934317,1731312646164,-2605.834856,0.00014798,2]
[341934318,1731312646173,-2605.834856,0.00014798,2]
[341934319,1731312646183,-500.0,0.00014798,2]
[341934320,1731312646193,-500.0,0.00014798,2]
[341934321,1731312646202,-300.242434,0.00014798,2]
[341934322,1731312646211,-2605.834856,0.00014798,2]
[341934323,1731312646220,-300.242434,0.00014798,2]
[341934324,1731312646230,-2605.834856,0.00014798,2]
[341934325,1731312646239,-262.312586,0.00014798,2]
[341934326,1731312646249,-262.312586,0.00014798,2]
[341934327,1731312646258,-300.242434,0.00014798,2]
[341934328,1731312646267,-300.242434,0.00014798,2]
[341934329,1731312646276,-151.0,0.00014798,2]
[341934330,1731312646286,-151.0,0.00014798,2]
[341934332,1731312646295,-500.0,0.00014798,2]
[341934334,1731312646304,-500.0,0.00014798,2]
[341934336,1731312646314,-500.0,0.00014798,2]
[341934338,1731312646325,-500.0,0.00014798,2]
[341934340,1731312646335,-500.0,0.00014798,2]
[341934342,1731312646345,-500.0,0.00014798,2]
[341934344,1731312646354,-592.15,0.00014798,2]
[341934346,1731312646364,-592.15,0.00014798,2]
[341934348,1731312646374,-676.91,0.00014798,2]
[341934350,1731312646383,-676.91,0.00014798,2]
[341934352,1731312646394,-500.0,0.00014798,2]
[341934354,1731312646404,-500.0,0.00014798,2]
[341934356,1731312646414,-500.0,0.00014798,2]
[341934358,1731312646424,-330.32009965,0.00014798,2]
[341934360,1731312646435,-500.0,0.00014798,2]
[341934362,1731312646444,-500.0,0.00014798,2]
[341934364,1731312646455,-544.34,0.00014798,2]
[341934366,1731312646464,-544.34,0.00014798,2]
[341934368,1731312646475,-535.58,0.00014798,2]
[341934370,1731312646484,-535.58,0.00014798,2]
[341934372,1731312646494,-500.0,0.00014798,2]
[341934374,1731312646503,-500.0,0.00014798,2]
[341934375,1731312646513,-500.0,0.00014798,2]
[341934377,1731312646522,-151.0,0.00014798,2]
[341934379,1731312646532,-500.0,0.00014798,2]
[341934382,1731312646542,-151.0,0.00014798,2]
[341934384,1731312646553,-151.0,0.00014798,2]
[341934386,1731312646562,-151.0,0.00014798,2]
[341934387,1731312646571,-500.0,0.00014798,2]
[341934390,1731312646581,-500.0,0.00014798,2]
[341934392,1731312646591,-272.202762,0.00014798,2]
[341934394,1731312646600,-500.0,0.00014798,2]
[341934396,1731312646609,-500.0,0.00014798,2]
[341934398,1731312646619,-500.0,0.00014798,2]
[341934400,1731312646628,-500.0,0.00014798,2]
[341934402,1731312646638,-500.0,0.00014798,2]
[341934404,1731312646647,-500.0,0.00014798,2]
[341934405,1731312646657,-500.0,0.00014798,2]
[341934407,1731312646667,-500.0,0.00014798,2]
[341934410,1731312646677,-500.0,0.00014798,2]
[341934411,1731312646687,-500.0,0.00014798,2]
[341934413,1731312646697,-350.49867389,0.00014798,2]
[341934415,1731312646706,-162.520225,0.00014798,2]
[341934417,1731312646716,-162.520225,0.00014798,2]
[341934419,1731312646726,-500.0,0.00014798,2]
[341934421,1731312646736,-321.2,0.00014798,2]
[341934424,1731312646746,-367.935328,0.00014798,2]
[341934426,1731312646756,-162.520225,0.00014798,2]
[341934427,1731312646765,-367.935328,0.00014798,2]
[341934430,1731312646775,-162.520225,0.00014798,2]
[341934432,1731312646785,-367.935328,0.00014798,2]
[341934434,1731312646795,-367.935328,0.00014798,2]
[341934436,1731312646804,-356.26,0.00014798,2]
[341934438,1731312646813,-500.0,0.00014798,2]
[341934440,1731312646823,-500.0,0.00014798,2]
[341934442,1731312646833,-500.0,0.00014798,2]
[341934443,1731312646843,-341.91386057,0.00014798,2]
[341934445,1731312646853,-2101.853419,0.00014798,2]
[341934447,1731312646863,-2101.853419,0.00014798,2]
[341934449,1731312646872,-2111.16,0.00014798,2]
[341934451,1731312646885,-2111.16,0.00014798,2]
[341934453,1731312646895,-1125.0,0.00014798,2]
[341934455,1731312646903,-2101.853419,0.00014798,2]
[341934457,1731312646913,-2101.853419,0.00014798,2]
[341934459,1731312646923,-1087.70344959,0.00014799,5]
[341934461,1731312646932,-151.0,0.00014799,2]
[341934463,1731312646943,-500.0,0.00014799,2]
[341934465,1731312646953,-500.0,0.00014799,2]
[341934467,1731312646963,-498.78430554,0.00014799,2]
[341934469,1731312646973,-500.0,0.00014799,2]
[341934471,1731312646982,-500.0,0.00014799,2]
[341934473,1731312646991,-463.10324648,0.00014799,2]
[341934475,1731312647000,-151.0,0.00014799,2]
[341934477,1731312647010,-151.0,0.00014799,2]
[341934479,1731312647019,-151.0,0.00014799,2]
[341934481,1731312647028,-196.21452,0.00014799,2]
[341934483,1731312647037,-151.0,0.00014799,2]
[341934485,1731312647047,-164.06671,0.00014799,2]
[341934487,1731312647056,-159.090139,0.00014799,2]
[341934489,1731312647066,-151.0,0.00014799,2]
[341934491,1731312647075,-151.0,0.00014799,2]
[341934493,1731312647084,-151.0,0.00014799,2]
[341934495,1731312647093,-151.0,0.00014799,2]
[341934497,1731312647102,-151.0,0.00014799,2]
[341934499,1731312647111,-151.0,0.00014799,2]
[341934501,1731312647120,-151.0,0.00014799,2]
[341934503,1731312647130,-282.182912,0.00014799,2]
[341934505,1731312647140,-151.0,0.00014799,2]
[341934507,1731312647150,-151.0,0.00014799,2]
[341934509,1731312647159,-151.0,0.00014799,2]
[341934511,1731312647168,-151.0,0.00014799,2]
[341934513,1731312647178,-151.0,0.00014799,2]
[341934515,1731312647188,-151.0,0.00014799,2]
[341934517,1731312647198,-151.0,0.00014799,2]
[341934519,1731312647207,-151.0,0.00014799,2]
[341934521,1731312647217,-151.0,0.00014799,2]
[341934523,1731312647226,-159.205493,0.00014799,2]
[341934525,1731312647236,-159.205493,0.00014799,2]
[341934527,1731312647245,-159.205493,0.00014799,2]
[341934529,1731312647254,-159.205493,0.00014799,2]
[341934531,1731312647264,-159.205493,0.00014799,2]
[341934533,1731312647273,-159.205493,0.00014799,2]
[341934535,1731312647283,-159.205493,0.00014799,2]
[341934537,1731312647292,-159.205493,0.00014799,2]
[341934539,1731312647302,-159.205493,0.00014799,2]
[341934541,1731312647311,-159.205493,0.00014799,2]
[341934543,1731312647321,-159.205493,0.00014799,2]
[341934545,1731312647330,-159.205493,0.00014799,2]
[341934547,1731312647340,-159.205493,0.00014799,2]
[341934549,1731312647351,-159.205493,0.00014799,2]
[341934551,1731312647360,-159.205493,0.00014799,2]
[341934553,1731312647369,-159.205493,0.00014799,2]
[341934555,1731312647378,-159.205493,0.00014799,2]
[341934557,1731312647387,-159.205498,0.00014799,2]
[341934559,1731312647396,-151.0,0.00014799,2]
[341934561,1731312647406,-151.0,0.00014799,2]
[341934563,1731312647415,-161.290682,0.00014799,2]
[341934565,1731312647425,-151.0,0.00014799,2]
[341934567,1731312647435,-151.0,0.00014799,2]
[341934569,1731312647444,-151.0,0.00014799,2]
[341934571,1731312647453,-151.0,0.00014799,2]
[341934573,1731312647463,-151.0,0.00014799,2]
[341934575,1731312647472,-151.0,0.00014799,2]
[341934577,1731312647482,-151.0,0.00014799,2]
[341934580,1731312647491,-151.0,0.00014799,2]
[341934582,1731312647500,-1219.5,0.00014799,2]